fUSD/lending_fUSD_20250609
["ID","MTS","AMOUNT","RATE_DAILY","PERIOD"]
[365162403,1749505865905,-1470.55,0.00019506,2]
[365162404,1749505865914,-801.8,0.00019506,2]
[365162405,1749505865924,-490.0,0.00019506,2]
[365162406,1749505865933,-490.0,0.00019506,2]
[365162407,1749505865943,-696.21,0.00019506,2]
[365162408,1749505865953,-490.0,0.00019506,2]
[365162409,1749505865963,-490.0,0.00019506,2]
[365162410,1749505865972,-490.0,0.00019506,2]
[365162411,1749505865982,-490.0,0.00019506,2]
[365162412,1749505865992,-490.0,0.00019506,2]
[365162413,1749505866002,-490.0,0.00019506,2]
[365162414,1749505866012,-490.0,0.00019506,2]
[365162415,1749505866023,-490.0,0.00019506,2]
[365162416,1749505866033,-490.0,0.00019506,2]
[365162417,1749505866043,-490.0,0.00019506,2]
[365162418,1749505866053,-522.66,0.00019506,2]
[365162419,1749505866062,-672.45,0.00019506,2]
[365162420,1749505866071,-490.0,0.00019506,2]
[365162421,1749505866081,-490.0,0.00019506,2]
[365162422,1749505866091,-662.92,0.00019506,2]
[365162423,1749505866100,-490.0,0.00019506,2]
[365162424,1749505866109,-490.0,0.00019506,2]
[365162425,1749505866119,-583.22,0.00019506,2]
[365162426,1749505866128,-490.0,0.00019506,2]
[365162427,1749505866137,-228.33333066,0.00019506,2]
[365162428,1749505866147,-154.942484,0.00019506,2]
[365162429,1749505866156,-490.0,0.00019506,2]
[365162430,1749505866166,-490.0,0.00019506,2]
[365162431,1749505866175,-154.942484,0.00019506,2]
[365162432,1749505866184,-823.02,0.00019506,2]
[365162433,1749505866194,-490.0,0.00019506,2]
[365162434,1749505866203,-736.07,0.00019506,2]
[365162435,1749505866212,-869.839935,0.00019506,2]
[365162436,1749505866222,-801.12,0.00019506,2]
[365162437,1749505866231,-490.0,0.00019506,2]
[365162438,1749505866240,-1000.0,0.00019506,2]
[365162439,1749505866249,-869.839935,0.00019506,2]
[365162440,1749505866259,-490.0,0.00019506,2]
[365162441,1749505866267,-3673.1,0.00019506,2]
[365162442,1749505866276,-490.0,0.00019506,2]
[365162443,1749505866285,-574.54,0.00019506,2]
[365162444,1749505866294,-761.53,0.00019506,2]
[365162445,1749505866304,-586.18,0.00019506,2]
[365162446,1749505866313,-151.0,0.00019506,2]
[365162447,1749505866322,-2938.74,0.00019506,2]
[365162448,1749505866331,-790.33,0.00019506,2]
[365162449,1749505866340,-490.0,0.00019506,2]
[365162450,1749505866350,-490.0,0.00019506,2]
[365162451,1749505866363,-537.5,0.00019506,2]
[365162452,1749505866372,-474.63201577,0.00019506,2]
[365162453,1749505866381,-586.9,0.00019506,2]
[365162454,1749505866391,-490.0,0.00019506,2]
[365162455,1749505866400,-1131.27,0.00019506,2]
[365162456,1749505866409,-490.0,0.00019506,2]
[365162457,1749505866418,-151.0,0.00019506,2]
[365162458,1749505866427,-493.84,0.00019506,2]
[365162459,1749505866436,-754.92,0.00019506,2]
[365162460,1749505866445,-980.32,0.00019506,2]
[365162461,1749505866454,-151.0,0.00019506,2]
[365162462,1749505866463,-491.86,0.00019506,2]
[365162463,1749505866472,-490.0,0.00019506,2]
[365162464,1749505866481,-659.46,0.00019506,2]
[365162465,1749505866490,-490.0,0.00019506,2]
[365162466,1749505866499,-490.0,0.00019506,2]
[365162467,1749505866508,-490.0,0.00019506,2]
[365162468,1749505866517,-490.0,0.00019506,2]
[365162469,1749505866527,-693.31,0.00019506,2]
[365162470,1749505866536,-1654.58,0.00019506,2]
[365162471,1749505866545,-492.26,0.00019506,2]
[365162472,1749505866554,-1764.12,0.00019506,2]
[365162473,1749505866564,-600.22,0.00019506,2]
[365162474,1749505866573,-762.31,0.00019506,2]
[365162475,1749505866583,-1248.33,0.00019506,2]
[365162476,1749505866592,-22013.02,0.00019506,2]
[365162477,1749505866602,-490.0,0.00019506,2]
[365162478,1749505866611,-2442.75,0.00019506,2]
[365162479,1749505866620,-490.0,0.00019506,2]
[365162480,1749505866629,-609.93,0.00019506,2]
[365162481,1749505866638,-490.0,0.00019506,2]
[365162482,1749505866647,-490.0,0.00019506,2]
[365162483,1749505866656,-988.94,0.00019506,2]
[365162484,1749505866665,-498.25,0.00019506,2]
[365162485,1749505866674,-490.0,0.00019506,2]
[365162486,1749505866683,-1715.74,0.00019506,2]
[365162487,1749505866693,-490.0,0.00019506,2]
[365162488,1749505866702,-690.76,0.00019506,2]
[365162489,1749505866712,-490.0,0.00019506,2]
[365162490,1749505866721,-1189.59,0.00019506,2]
[365162491,1749505866730,-490.0,0.00019506,2]
[365162492,1749505866739,-989.49,0.00019506,2]
[365162493,1749505866749,-571.45,0.00019506,2]
[365162494,1749505866759,-1030.343412,0.00019506,2]
[365162495,1749505866768,-928.71,0.00019506,2]
[365162496,1749505866778,-2350.31,0.00019506,2]
[365162497,1749505866789,-1264.31,0.00019506,2]
[365162498,1749505866799,-490.0,0.00019506,2]
[365162499,1749505866809,-1030.343412,0.00019506,2]
[365162500,1749505866819,-1354.02,0.00019506,2]
[365162501,1749505866828,-685.55,0.00019506,2]
[365162502,1749505866836,-428.618444,0.00019506,2]
[365162503,1749505866844,-1082.19,0.00019506,2]
[365162504,1749505866852,-490.0,0.00019506,2]
[365162505,1749505866859,-1131.15,0.00019506,2]
[365162506,1749505866867,-2694.05,0.00019506,2]
[365162507,1749505866877,-490.0,0.00019506,2]
[365162508,1749505866886,-931.9,0.00019506,2]
[365162509,1749505866894,-428.618444,0.00019506,2]
[365162510,1749505866903,-1853.72,0.00019506,2]
[365162511,1749505866911,-1170.92,0.00019506,2]
[365162512,1749505866920,-490.0,0.00019506,2]
[365162513,1749505866929,-1121.52,0.00019506,2]
[365162514,1749505866937,-3711.47,0.00019506,2]
[365162515,1749505866945,-1000.0,0.00019506,2]
[365162516,1749505866955,-976.41,0.00019506,2]
[365162517,1749505866965,-513.94,0.00019506,2]
[365162518,1749505866974,-490.0,0.00019506,2]
[365162519,1749505866983,-262.41708235,0.00019506,2]
[365162520,1749505866992,-490.0,0.00019506,2]
[365162521,1749505867001,-5578.96,0.00019506,2]
[365162522,1749505867010,-795.61,0.00019506,2]
[365162523,1749505867020,-616.39,0.00019506,2]
[365162524,1749505867029,-680.92,0.00019506,2]
[365162525,1749505867039,-2341.74,0.00019506,2]
[365162526,1749505867049,-151.0,0.00019506,2]
[365162527,1749505867058,-687.79,0.00019506,2]
[365162528,1749505867067,-2783.44,0.00019506,2]
[365162529,1749505867078,-617.79,0.00019506,2]
[365162530,1749505867087,-151.0,0.00019506,2]
[365162531,1749505867096,-490.0,0.00019506,2]
[365162532,1749505867106,-178.889108,0.00019506,2]
[365162533,1749505867115,-490.0,0.00019506,2]
[365162534,1749505867125,-490.0,0.00019506,2]
[365162535,1749505867134,-931.63,0.00019506,2]
[365162536,1749505867143,-490.0,0.00019506,2]
[365162537,1749505867153,-1384.66,0.00019506,2]
[365162538,1749505867163,-151.0,0.00019506,2]
[365162539,1749505867172,-1211.54,0.00019506,2]
[365162540,1749505867181,-2938.8,0.00019506,2]
[365162541,1749505867190,-178.889108,0.00019506,2]
[365162542,1749505867199,-490.0,0.00019506,2]
[365162543,1749505867209,-1356.04,0.00019506,2]
[365162544,1749505867218,-490.0,0.00019506,2]
[365162545,1749505867228,-151.0,0.00019506,2]
[365162546,1749505867237,-1043.72,0.00019506,2]
[365162547,1749505867246,-2060.31,0.00019506,2]
[365162548,1749505867255,-490.0,0.00019506,2]
[365162549,1749505867264,-2694.17,0.00019506,2]
[365162550,1749505867273,-961.23,0.00019506,2]
[365162551,1749505867282,-490.0,0.00019506,2]
[365162552,1749505867291,-749.91,0.00019506,2]
[365162553,1749505867299,-5291.38,0.00019506,2]
[365162554,1749505867306,-645.48,0.00019506,2]
[365162555,1749505867314,-490.0,0.00019506,2]
[365162556,1749505867322,-1362.15,0.00019506,2]
[365162557,1749505867330,-151.0,0.00019506,2]
[365162558,1749505867338,-720.48,0.00019506,2]
[365162559,1749505867347,-1270.54,0.00019506,2]
[365162560,1749505867355,-555.43,0.00019506,2]
[365162561,1749505867363,-490.0,0.00019506,2]
[365162562,1749505867371,-490.0,0.00019506,2]
[365162563,1749505867379,-1114.61,0.00019506,2]
[365162564,1749505867388,-490.0,0.00019506,2]
[365162565,1749505867397,-960.15,0.00019506,2]
[365162566,1749505867406,-1309.18,0.00019506,2]
[365162567,1749505867415,-490.0,0.00019506,2]
[365162568,1749505867424,-490.0,0.00019506,2]
[365162569,1749505867433,-490.0,0.00019506,2]
[365162570,1749505867443,-490.0,0.00019506,2]
[365162571,1749505867452,-691.93,0.00019506,2]
[365162572,1749505867461,-758.66,0.00019506,2]
[365162573,1749505867470,-305.31475367,0.00019506,2]
[365162574,1749505867480,-490.0,0.00019506,2]
[365162575,1749505867489,-1626.31,0.00019506,2]
[365162576,1749505867498,-629.07,0.00019506,2]
[365162577,1749505867507,-1086.43,0.00019506,2]
[365162578,1749505867516,-1306.59,0.00019506,2]
[365162579,1749505867526,-988.78,0.00019506,2]
[365162580,1749505867535,-656.06,0.00019506,2]
[365162581,1749505867545,-490.0,0.00019506,2]
[365162582,1749505867555,-490.0,0.00019506,2]
[365162583,1749505867564,-640.23,0.00019506,2]
[365162584,1749505867573,-490.0,0.00019506,2]
[365162585,1749505867583,-1623.53,0.00019506,2]
[365162586,1749505867592,-543.78,0.00019506,2]
[365162587,1749505867601,-490.0,0.00019506,2]
[365162588,1749505867610,-1710.27,0.00019506,2]
[365162589,1749505867619,-601.87,0.00019506,2]
[365162590,1749505867628,-643.44,0.00019506,2]
[365162591,1749505867637,-1498.81,0.00019506,2]
[365162592,1749505867646,-490.0,0.00019506,2]
[365162593,1749505867655,-490.0,0.00019506,2]
[365162594,1749505867664,-967.1,0.00019506,2]
[365162595,1749505867674,-490.0,0.00019506,2]
[365162596,1749505867683,-490.0,0.00019506,2]
[365162597,1749505867692,-490.0,0.00019506,2]
[365162598,1749505867701,-10000.0,0.00019506,2]
[365162599,1749505867710,-470.0,0.00019506,2]
[365162600,1749505867719,-1454.84,0.00019506,2]
[365162601,1749505867728,-490.0,0.00019506,2]
[365162602,1749505867738,-880.05,0.00019506,2]
[365162603,1749505867747,-1024.87,0.00019506,2]
[365162604,1749505867756,-516.18,0.00019506,2]
[365162605,1749505867765,-1295.44,0.00019506,2]
[365162606,1749505867775,-490.0,0.00019506,2]
[365162607,1749505867784,-10000.0,0.00019506,2]
[365162608,1749505867794,-151.0,0.00019506,2]
[365162609,1749505867803,-689.19,0.00019506,2]
[365162610,1749505867813,-1339.92,0.00019506,2]
[365162611,1749505867824,-490.0,0.00019506,2]
[365162612,1749505867834,-490.0,0.00019506,2]
[365162613,1749505867843,-3861.23,0.00019506,2]
[365162614,1749505867852,-630.2,0.00019506,2]
[365162615,1749505867862,-490.0,0.00019506,2]
[365162616,1749505867871,-539.44,0.00019506,2]
[365162617,1749505867885,-490.0,0.00019506,2]
[365162618,1749505867894,-5299.32,0.00019506,2]
[365162619,1749505867904,-490.0,0.00019506,2]
[365162620,1749505867914,-490.0,0.00019506,2]
[365162621,1749505867926,-1150.54,0.00019506,2]
[365162622,1749505867935,-490.0,0.00019506,2]
[365162623,1749505867945,-490.0,0.00019506,2]
[365162624,1749505867955,-841.64,0.00019506,2]
[365162625,1749505867965,-837.59,0.00019506,2]
[365162626,1749505867975,-906.14,0.00019506,2]
[365162627,1749505867985,-490.0,0.00019506,2]
[365162628,1749505867995,-1010.65,0.00019506,2]
[365162629,1749505868005,-490.0,0.00019506,2]
[365162630,1749505868015,-1452.3,0.00019506,2]
[365162631,1749505868024,-490.0,0.00019506,2]
[365162632,1749505868034,-608.49,0.00019506,2]
[365162633,1749505868045,-490.0,0.00019506,2]
[365162634,1749505868054,-490.0,0.00019506,2]
[365162635,1749505868064,-490.0,0.00019506,2]
[365162636,1749505868074,-490.0,0.00019506,2]
[365162637,1749505868084,-1342.38,0.00019506,2]
[365162638,1749505868094,-766.22,0.00019506,2]
[365162639,1749505868103,-910.84,0.00019506,2]
[365162640,1749505868113,-1034.87,0.00019506,2]
[365162641,1749505868123,-1666.06,0.00019506,2]
[365162642,1749505868133,-1128.2,0.00019506,2]
[365162643,1749505868143,-1903.48,0.00019506,2]
[365162644,1749505868154,-629.891401,0.00019506,2]
[365162645,1749505868164,-490.0,0.00019506,2]
[365162646,1749505868173,-578.57,0.00019506,2]
[365162647,1749505868183,-1247.55,0.00019506,2]
[365162648,1749505868193,-490.0,0.00019506,2]
[365162649,1749505868203,-490.0,0.00019506,2]
[365162650,1749505868213,-629.891401,0.00019506,2]
[365162651,1749505868223,-530.81,0.00019506,2]
[365162652,1749505868233,-533.02,0.00019506,2]
[365162653,1749505868243,-1058.14,0.00019506,2]
[365162654,1749505868253,-490.0,0.00019506,2]
[365162655,1749505868263,-490.0,0.00019506,2]
[365162656,1749505868273,-953.68,0.00019506,2]
[365162657,1749505868282,-490.0,0.00019506,2]
[365162658,1749505868292,-3031.76,0.00019506,2]
[365162659,1749505868302,-561.54,0.00019506,2]
[365162660,1749505868311,-2763.66,0.00019506,2]
[365162661,1749505868321,-490.0,0.00019506,2]
[365162662,1749505868331,-551.23,0.00019506,2]
[365162663,1749505868340,-532.06,0.00019506,2]
[365162664,1749505868349,-151.698972,0.00019506,2]
[365162665,1749505868359,-2295.29,0.00019506,2]
[365162666,1749505868369,-626.76,0.00019506,2]
[365162667,1749505868379,-1514.643744,0.00019506,2]
[365162668,1749505868388,-705.95,0.00019506,2]
[365162669,1749505868398,-2196.49,0.00019506,2]
[365162670,1749505868407,-490.0,0.00019506,2]
[365162671,1749505868417,-151.698972,0.00019506,2]
[365162672,1749505868427,-1330.92,0.00019506,2]
[365162673,1749505868437,-1514.643744,0.00019506,2]
[365162674,1749505868447,-490.0,0.00019506,2]
[365162675,1749505868456,-492.13,0.00019506,2]
[365162676,1749505868466,-594.3,0.00019506,2]
[365162677,1749505868476,-3663.446558,0.00019506,2]
[365162678,1749505868486,-490.0,0.00019506,2]
[365162679,1749505868496,-3663.446558,0.00019506,2]
[365162680,1749505868506,-490.0,0.00019506,2]
[365162681,1749505868517,-490.0,0.00019506,2]
[365162682,1749505868527,-1866.71,0.00019506,2]
[365162683,1749505868537,-1205.06,0.00019506,2]
[365162684,1749505868547,-490.0,0.00019506,2]
[365162685,1749505868558,-490.0,0.00019506,2]
[365162686,1749505868568,-1050.12,0.00019506,2]
[365162687,1749505868578,-490.0,0.00019506,2]
[365162688,1749505868589,-490.0,0.00019506,2]
[365162689,1749505868598,-781.96,0.00019506,2]
[365162690,1749505868608,-490.0,0.00019506,2]
[365162691,1749505868618,-490.0,0.00019506,2]
[365162692,1749505868628,-151.0,0.00019506,2]
[365162693,1749505868638,-1394.78,0.00019506,2]
[365162694,1749505868647,-2985.0,0.00019507,2]
[365162695,1749505868657,-919.0,0.00019507,2]
[365162696,1749505868667,-334.47662734,0.00019507,2]
[365162697,1749505868678,-5414.33,0.00019507,2]
[365162698,1749505868687,-5414.33,0.00019507,2]
[365162699,1749505868697,-5414.33,0.00019507,2]
[365162700,1749505868707,-5414.33,0.00019507,2]
[365162701,1749505868716,-5414.33,0.00019507,2]
[365162702,1749505868726,-5414.33,0.00019507,2]
[365162703,1749505868735,-5414.33,0.00019507,2]
[365162704,1749505868745,-5414.33,0.00019507,2]
[365162705,1749505868755,-5414.33,0.00019507,2]
[365162706,1749505868766,-5414.33,0.00019507,2]
[365162707,1749505868776,-5414.33,0.00019507,2]
[365162708,1749505868786,-5414.33,0.00019507,2]
[365162709,1749505868796,-5414.33,0.00019507,2]
[365162710,1749505868806,-5414.33,0.00019507,2]
[365162711,1749505868816,-5414.33,0.00019507,2]
[365162712,1749505868826,-5414.33,0.00019507,2]
[365162713,1749505868836,-5414.33,0.00019507,2]
[365162714,1749505868846,-5414.33,0.00019507,2]
[365162715,1749505868855,-5414.33,0.00019507,2]
[365162716,1749505868865,-5414.43736829,0.00019507,2]
[365162717,1749505868877,-5841.07129857,0.00019513,2]
[365162718,1749505868890,-664.18404425,0.00019521,2]
[365162719,1749505868900,-2985.0,0.00019534,2]
[365162720,1749505868910,-919.0,0.00019534,2]
[365162721,1749505868922,-170.96828815,0.00019534,2]
[365162722,1749505868932,-664.18404425,0.00019555,2]
[365162723,1749505868942,-2985.0,0.00019562,2]
[365162724,1749505868952,-919.0,0.00019562,2]
[365162725,1749505868965,-4909.27822583,0.00019565,2]
[365162726,1749505868977,-621.9530426,0.00019571,2]
[365162727,1749505868987,-955.03,0.00019572,2]
[365162728,1749505868998,-5700.11,0.00019572,2]
[365162729,1749505869008,-500.0,0.00019573,2]
[365162730,1749505869018,-151.0,0.00019573,2]
[365162731,1749505869028,-154.670046,0.00019573,2]
[365162732,1749505869038,-154.670046,0.00019573,2]
[365162733,1749505869048,-820.692982,0.00019573,2]
[365162734,1749505869058,-820.692982,0.00019573,2]
[365162735,1749505869068,-2014.858368,0.00019573,2]
[365162736,1749505869078,-2014.858368,0.00019573,2]
[365162737,1749505869088,-277.714419,0.00019573,2]
[365162738,1749505869097,-277.714419,0.00019573,2]
[365162739,1749505869108,-151.0,0.00019573,2]
[365162740,1749505869117,-500.0,0.00019573,2]
[365162741,1749505869127,-673.0,0.00019573,2]
[365162742,1749505869137,-151.0,0.00019573,2]
[365162743,1749505869147,-500.0,0.00019573,2]
[365162744,1749505869157,-500.0,0.00019573,2]
[365162745,1749505869167,-500.0,0.00019573,2]
[365162746,1749505869177,-500.0,0.00019573,2]
[365162747,1749505869187,-500.0,0.00019573,2]
[365162748,1749505869197,-500.0,0.00019573,2]
[365162749,1749505869207,-500.0,0.00019573,2]
[365162750,1749505869217,-500.0,0.00019573,2]
[365162751,1749505869227,-500.0,0.00019573,2]
[365162752,1749505869237,-500.0,0.00019573,2]
[365162753,1749505869247,-500.0,0.00019573,2]
[365162754,1749505869256,-507.0,0.00019573,2]
[365162755,1749505869266,-151.0,0.00019573,2]
[365162756,1749505869275,-286.637255,0.00019573,2]
[365162757,1749505869285,-185.416375,0.00019573,2]
[365162758,1749505869294,-500.0,0.00019573,2]
[365162759,1749505869304,-500.0,0.00019573,2]
[365162760,1749505869314,-500.0,0.00019573,2]
[365162761,1749505869323,-500.0,0.00019573,2]
[365162762,1749505869332,-500.0,0.00019573,2]
[365162763,1749505869342,-500.0,0.00019573,2]
[365162764,1749505869351,-500.0,0.00019573,2]
[365162765,1749505869361,-500.0,0.00019573,2]
[365162766,1749505869371,-185.416375,0.00019573,2]
[365162767,1749505869381,-500.0,0.00019573,2]
[365162768,1749505869390,-500.0,0.00019573,2]
[365162769,1749505869400,-500.0,0.00019573,2]
[365162770,1749505869410,-500.0,0.00019573,2]
[365162771,1749505869420,-500.0,0.00019573,2]
[365162772,1749505869430,-500.0,0.00019573,2]
[365162773,1749505869440,-500.0,0.00019573,2]
[365162774,1749505869450,-500.0,0.00019573,2]
[365162775,1749505869460,-500.0,0.00019573,2]
[365162776,1749505869470,-500.0,0.00019573,2]
[365162777,1749505869480,-500.0,0.00019573,2]
[365162778,1749505869490,-500.0,0.00019573,2]
[365162779,1749505869500,-500.0,0.00019573,2]
[365162780,1749505869509,-500.0,0.00019573,2]
[365162781,1749505869519,-500.0,0.00019573,2]
[365162782,1749505869529,-500.0,0.00019573,2]
[365162783,1749505869540,-500.0,0.00019573,2]
[365162784,1749505869551,-500.0,0.00019573,2]
[365162785,1749505869562,-500.0,0.00019573,2]
[365162786,1749505869571,-500.0,0.00019573,2]
[365162787,1749505869582,-500.0,0.00019573,2]
[365162788,1749505869592,-500.0,0.00019573,2]
[365162789,1749505869602,-500.0,0.00019573,2]
[365162790,1749505869612,-500.0,0.00019573,2]
[365162791,1749505869622,-500.0,0.00019573,2]
[365162792,1749505869631,-500.0,0.00019573,2]
[365162793,1749505869642,-500.0,0.00019573,2]
[365162794,1749505869652,-500.0,0.00019573,2]
[365162795,1749505869662,-500.0,0.00019573,2]
[365162796,1749505869671,-500.0,0.00019573,2]
[365162797,1749505869682,-500.0,0.00019573,2]
[365162798,1749505869692,-500.0,0.00019573,2]
[365162799,1749505869702,-500.0,0.00019573,2]
[365162800,1749505869712,-500.0,0.00019573,2]
[365162801,1749505869722,-500.0,0.00019573,2]
[365162802,1749505869732,-500.0,0.00019573,2]
[365162803,1749505869743,-500.0,0.00019573,2]
[365162804,1749505869753,-500.0,0.00019573,2]
[365162805,1749505869763,-500.0,0.00019573,2]
[365162806,1749505869774,-500.0,0.00019573,2]
[365162807,1749505869784,-849.586945,0.00019573,2]
[365162808,1749505869794,-500.0,0.00019573,2]
[365162809,1749505869804,-500.0,0.00019573,2]
[365162810,1749505869815,-500.0,0.00019573,2]
[365162811,1749505869824,-500.0,0.00019573,2]
[365162812,1749505869836,-500.0,0.00019573,2]
[365162813,1749505869845,-500.0,0.00019573,2]
[365162814,1749505869855,-500.0,0.00019573,2]
[365162815,1749505869865,-500.0,0.00019573,2]
[365162816,1749505869875,-500.0,0.00019573,2]
[365162817,1749505869889,-500.0,0.00019573,2]
[365162818,1749505869899,-500.0,0.00019573,2]
[365162819,1749505869909,-849.586945,0.00019573,2]
[365162820,1749505869919,-500.0,0.00019573,2]
[365162821,1749505869930,-500.0,0.00019573,2]
[365162822,1749505869940,-500.0,0.00019573,2]
[365162823,1749505869950,-500.0,0.00019573,2]
[365162824,1749505869963,-500.0,0.00019573,2]
[365162825,1749505869974,-500.0,0.00019573,2]
[365162826,1749505869985,-978.0,0.00019573,2]
[365162827,1749505869995,-151.0,0.00019573,2]
[365162828,1749505870005,-151.0,0.00019573,2]
[365162829,1749505870015,-151.0,0.00019573,2]
[365162830,1749505870026,-151.0,0.00019573,2]
[365162831,1749505870036,-500.0,0.00019573,2]
[365162832,1749505870048,-500.0,0.00019573,2]
[365162833,1749505870059,-500.0,0.00019573,2]
[365162834,1749505870278,-500.0,0.00019573,2]
[365162835,1749505870289,-500.0,0.00019573,2]
[365162836,1749505870299,-500.0,0.00019573,2]
[365162837,1749505870309,-500.0,0.00019573,2]
[365162838,1749505870319,-500.0,0.00019573,2]
[365162839,1749505870329,-500.0,0.00019573,2]
[365162840,1749505870338,-500.0,0.00019573,2]
[365162841,1749505870348,-500.0,0.00019573,2]
[365162842,1749505870357,-500.0,0.00019573,2]
[365162843,1749505870367,-500.0,0.00019573,2]
[365162844,1749505870377,-500.0,0.00019573,2]
[365162845,1749505870387,-500.0,0.00019573,2]
[365162846,1749505870397,-500.0,0.00019573,2]
[365162847,1749505870406,-500.0,0.00019573,2]
[365162848,1749505870416,-500.0,0.00019573,2]
[365162849,1749505870425,-500.0,0.00019573,2]
[365162850,1749505870435,-500.0,0.00019573,2]
[365162851,1749505870445,-500.0,0.00019573,2]
[365162852,1749505870454,-500.0,0.00019573,2]
[365162853,1749505870464,-500.0,0.00019573,2]
[365162854,1749505870474,-500.0,0.00019573,2]
[365162855,1749505870484,-500.0,0.00019573,2]
[365162856,1749505870494,-500.0,0.00019573,2]
[365162857,1749505870503,-500.0,0.00019573,2]
[365162858,1749505870513,-500.0,0.00019573,2]
[365162859,1749505870523,-500.0,0.00019573,2]
[365162860,1749505870533,-500.0,0.00019573,2]
[365162861,1749505870543,-500.0,0.00019573,2]
[365162862,1749505870553,-500.0,0.00019573,2]
[365162863,1749505870562,-500.0,0.00019573,2]
[365162864,1749505870573,-500.0,0.00019573,2]
[365162865,1749505870583,-500.0,0.00019573,2]
[365162866,1749505870594,-500.0,0.00019573,2]
[365162867,1749505870603,-500.0,0.00019573,2]
[365162868,1749505870613,-500.0,0.00019573,2]
[365162869,1749505870623,-511.0,0.00019573,2]
[365162870,1749505870633,-179.74098,0.00019573,2]
[365162871,1749505870643,-179.74098,0.00019573,2]
[365162872,1749505870652,-500.0,0.00019573,2]
[365162873,1749505870662,-500.0,0.00019573,2]
[365162874,1749505870671,-500.0,0.00019573,2]
[365162875,1749505870681,-500.0,0.00019573,2]
[365162876,1749505870690,-500.0,0.00019573,2]
[365162877,1749505870699,-500.0,0.00019573,2]
[365162878,1749505870709,-500.0,0.00019573,2]
[365162879,1749505870718,-500.0,0.00019573,2]
[365162880,1749505870727,-500.0,0.00019573,2]
[365162881,1749505870736,-500.0,0.00019573,2]
[365162882,1749505870745,-500.0,0.00019573,2]
[365162883,1749505870755,-500.0,0.00019573,2]
[365162884,1749505870764,-500.0,0.00019573,2]
[365162885,1749505870773,-500.0,0.00019573,2]
[365162886,1749505870783,-500.0,0.00019573,2]
[365162887,1749505870792,-500.0,0.00019573,2]
[365162888,1749505870801,-500.0,0.00019573,2]
[365162889,1749505870811,-500.0,0.00019573,2]
[365162890,1749505870820,-500.0,0.00019573,2]
[365162891,1749505870832,-500.0,0.00019573,2]
[365162892,1749505870841,-500.0,0.00019573,2]
[365162893,1749505870851,-500.0,0.00019573,2]
[365162894,1749505870861,-500.0,0.00019573,2]
[365162895,1749505870872,-500.0,0.00019573,2]
[365162896,1749505870884,-500.0,0.00019573,2]
[365162897,1749505870894,-500.0,0.00019573,2]
[365162898,1749505870903,-500.0,0.00019573,2]
[365162899,1749505870912,-500.0,0.00019573,2]
[365162900,1749505870922,-860.0,0.00019573,2]
[365162901,1749505870931,-219.308609,0.00019573,2]
[365162902,1749505870940,-219.308609,0.00019573,2]